Cogmind - Beta 11 X7 @@@ ROGUE MODE // 2021.09.17 @ 20:08:51 Player: Plexion Result: Self-destructed Performance ------------- Evolutions (2) 1000 Regions Visited (5) 1000 Robots Destroyed (9) 45 Value Destroyed (340) 340 Prototype IDs (24) 480 Alien Tech Used (0) 0 Bonus (300) 300 TOTAL SCORE: 3165 Bonus ------- Aligned with FarCom 300 Cogmind --------- Core Integrity 458/550 Matter 190/300 Energy 265/265 System Corruption 0% Temperature Cool (9) Movement Treading (360) Ox2 Location -8/Materials Parts ------- > --- POWER (1) -------- Improved Ion Engine > --- PROPULSION (3) --- Light Treads Light Treads > --- UTILITY (5) ------ Improved Heat Sink Huge Storage Unit > --- WEAPON (2) ------- Assault Rifle > --- INVENTORY (25) --- Light Ion Engine Splice Drone Bay (6/6) Grenade Launcher Peak State ------------ > --- POWER ------------ Light Ion Engine > --- PROPULSION ------- Wheel Wheel > --- UTILITY ---------- Huge Storage Unit Splice Drone Bay > --- WEAPON ----------- Assault Rifle Light Assault Rifle > --- INVENTORY -------- Light Ion Engine Light Treads Light Treads Improved Heat Sink Light Assault Rifle Grenade Launcher [Rating: 13] Favorites ----------- Power Light Ion Engine Engine Light Ion Engine Propulsion Wheel Treads Light Treads Wheel Wheel Utility Huge Storage Unit Device Improved Heat Sink Storage Huge Storage Unit Weapon Light Assault Rifle Ballistic Gun Light Assault Rifle Launcher Grenade Launcher Build | -11 -10 -10 -10 -9 -8 ------- Run | Scr Mat Min Exi Min Mat Slots Evolved 4 | . . . . . 4 Power . | . . . . . . Propulsion 1 | . . . . . 1 Utility 3 | . . . . . 3 Weapon . | . . . . . . Parts Attached 16 | 6 1 3 . 2 4 Power 2 | 1 . . . . 1 Engine 2 | 1 . . . . 1 Core . | . . . . . . Reactor . | . . . . . . Propulsion 4 | 2 . . . . 2 Treads 2 | . . . . . 2 Leg . | . . . . . . Wheel 2 | 2 . . . . . Hover . | . . . . . . Flight . | . . . . . . Utility 5 | 1 1 3 . . . Device 3 | . . 3 . . . Storage 2 | 1 1 . . . . Processor . | . . . . . . Hackware . | . . . . . . Protection . | . . . . . . Artifact . | . . . . . . Weapon 5 | 2 . . . 2 1 Energy Gun . | . . . . . . Energy Cannon . | . . . . . . Ballistic Gun 4 | 2 . . . 1 1 Ballistic Cannon . | . . . . . . Launcher 1 | . . . . 1 . Special Weapon . | . . . . . . Impact Weapon . | . . . . . . Slashing Weapon . | . . . . . . Piercing Weapon . | . . . . . . Special Melee Weapon . | . . . . . . Unidentified Prototypes 1 | . . 1 . . . Parts Lost 4 | . . . . . 4 Power . | . . . . . . Propulsion 2 | . . . . . 2 Utility . | . . . . . . Weapon 2 | . . . . . 2 Highest Loss Streak 4 | . . . . . 4 Average Slot Usage (%) 94 | . 85 94 100 100 69 Engine 13 | . 14 14 14 14 9 Wheel 26 | . 28 28 28 28 14 Device 10 | . . 8 14 14 9 Storage 13 | . 14 14 14 14 9 Ballistic Gun 27 | . 28 28 28 26 18 Naked Turns . | . . . . . . Heaviest Build 91 | 11 86 87 87 87 91 Greatest Support 20 | 20 20 20 20 20 20 Greatest Overweight (x) 9 | . 4 4 4 4 9 Average Overweight (x) 3 | . 1 4 4 4 4 Largest Inventory Capacity 25 | 8 25 25 25 25 25 Average Capacity 23 | 7 14 25 25 25 25 Most Carried 6 | 4 6 6 6 6 6 Average Carried 5 | 1 5 5 6 6 4 Final Capacity 25 | 8 25 25 25 25 25 Final Carried 6 | 4 6 6 6 6 3 Class Distribution -------------------- 100% | Mutant Dominant Class ---------------- Mutant | -10/Materials Mutant | -10/Mines Mutant | -10/Exiles Mutant | -9/Mines Mutant | -8/Materials Resources | -11 -10 -10 -10 -9 -8 ----------- Run | Scr Mat Min Exi Min Mat Matter Collected 378 | 230 . 146 . 2 . Remotely . | . . . . . . Salvage Created 361 | . . 254 . 38 69 Parts 21 | . . 16 . 3 2 Haulers Intercepted . | . . . . . . Recyclers Shooed . | . . . . . . Parts Field Recycled . | . . . . . . Retrieved Matter . | . . . . . . Parts Self-Destructed . | . . . . . . Prevented . | . . . . . . Kills | -11 -10 -10 -10 -9 -8 ------- Run | Scr Mat Min Exi Min Mat Combat Hostiles Destroyed 7 | . . 4 . 2 1 Guns 5 | . . 4 . . 1 AOE 2 | . . . . 2 . Classes Destroyed 3 | . . 3 . . . Worker 1 | . . 1 . . . Recycler 1 | . . 1 . . . Grunt 7 | . . 4 . 2 1 Best Kill Streak 3 | . . 3 . 2 1 Combat Bots Only 2 | . . 2 . 2 1 Max Kills in Single Turn 1 | . . 1 . 1 1 Gunslinging . | . . . . . . Exploded 1 | . . . . 1 . Melee . | . . . . . . Uniques/NPCs Destroyed . | . . . . . . Combat | -11 -10 -10 -10 -9 -8 -------- Run | Scr Mat Min Exi Min Mat Damage Taken 813 | . . 238 . 73 502 Core 166 | . . 58 . 16 92 Absorbed by Shields . | . . . . . . Core Remaining (%) 85 | 100 . . . 70 . Volleys Fired 32 | . . 19 3 4 6 Largest 2 | . . 2 1 1 2 Hottest 40 | . . 40 20 30 40 Shots Fired 56 | . . 38 3 4 11 Gun 52 | . . 38 3 . 11 Cannon . | . . . . . . Launcher 4 | . . . . 4 . Special . | . . . . . . Kinetic 52 | . . 38 3 . 11 Thermal . | . . . . . . Explosive 4 | . . . . 4 . Electromagnetic . | . . . . . . Robot Hit Streak 14 | . . 14 . . 4 Robot Miss Streak 2 | . . 2 . . 1 Penetration Max . | . . . . . . Secondary Targets . | . . . . . . Shots Hit Robots 34 | . . 27 . . 7 Core Hits 21 | . . 13 . 3 5 Critical Kills . | . . . . . . Critical Parts Destroyed . | . . . . . . Critical Strikes . | . . . . . . Melee Attacks . | . . . . . . Impact . | . . . . . . Slashing . | . . . . . . Piercing . | . . . . . . Sneak Attacks . | . . . . . . Combat Hostiles . | . . . . . . Follow-up Attacks . | . . . . . . Damage Inflicted 566 | . . 284 . 224 58 Guns 342 | . . 284 . . 58 Cannons . | . . . . . . Explosions 224 | . . . . 224 . Melee . | . . . . . . Ramming . | . . . . . . Kinetic 342 | . . 284 . . 58 Thermal 44 | . . . . 44 . Explosive 180 | . . . . 180 . Electromagnetic . | . . . . . . Impact . | . . . . . . Slashing . | . . . . . . Piercing . | . . . . . . Highest Corruption . | . . . . . . Average Corruption . | . . . . . . Corruption Purged . | . . . . . . Overload Shots . | . . . . . . Overflow Damage . | . . . . . . Projectiles . | . . . . . . Explosions . | . . . . . . Melee . | . . . . . . Knockbacks . | . . . . . . Impact . | . . . . . . Kinetic . | . . . . . . Secondary . | . . . . . . Self-Inflicted Damage . | . . . . . . Shots . | . . . . . . Rammed . | . . . . . . Targets Rammed . | . . . . . . Kicked . | . . . . . . Crushed . | . . . . . . Highest Temperature 18 | . . 18 . . . Average Temperature 9 | . . 9 . . . Received Heat Transfer 345 | . . 132 . 42 171 Siege Activations . | . . . . . . Robots Corrupted . | . . . . . . Combat Hostiles . | . . . . . . Parts Fried . | . . . . . . Impact Corruptions . | . . . . . . Robots Melted . | . . . . . . Combat Hostiles . | . . . . . . Parts Melted . | . . . . . . Heat Transferred 50 | . . . . 50 . Parts Sabotaged . | . . . . . . Parts Stolen . | . . . . . . Parts Stripped . | . . . . . . Power Chain Reactions . | . . . . . . Missiles Intercepted . | . . . . . . Alert | -11 -10 -10 -10 -9 -8 ------- Run | Scr Mat Min Exi Min Mat Peak Influence 111 | . . 111 . 95 92 Initial 37 | . . . . . 37 Average 48 | . . 53 . 88 48 Maximum Alert Level . | . . . . . . Low Security (%) 100 | 100 100 100 . 100 100 Level 1 . | . . . . . . Level 2 . | . . . . . . Level 3 . | . . . . . . Level 4 . | . . . . . . Level 5 . | . . . . . . High Security . | . . . . . . Max Security . | . . . . . . Squads Dispatched 3 | . . . . . 3 Investigation 1 | . . . . . 1 Extermination . | . . . . . . Reinforcement 1 | . . . . . 1 Assault . | . . . . . . Garrison 1 | . . . . . 1 Intercept . | . . . . . . Construction Impeded . | . . . . . . Haulers Reinforced . | . . . . . . Active Scanning Responses . | . . . . . . Cargo Convoy Interrupts . | . . . . . . Stealth | -11 -10 -10 -10 -9 -8 --------- Run | Scr Mat Min Exi Min Mat Distress Signals . | . . . . . . Communications Jammed . | . . . . . . Distress Signals . | . . . . . . Times Spotted 13 | . 1 4 . 2 6 Peak Tracking Total 9 | . 1 2 9 2 4 Tactical Retreats . | . . . . . . Traps | -11 -10 -10 -10 -9 -8 ------- Run | Scr Mat Min Exi Min Mat Traps Triggered . | . . . . . . Indirectly . | . . . . . . Trap Hack Attempts . | . . . . . . Triggered . | . . . . . . Disarmed . | . . . . . . Reprogrammed . | . . . . . . Reused . | . . . . . . Traps Extracted . | . . . . . . Installed . | . . . . . . Triggered . | . . . . . . Machines | -11 -10 -10 -10 -9 -8 ---------- Run | Scr Mat Min Exi Min Mat Machines Disabled 5 | . . . 1 3 1 Max in Single Turn 3 | . . . 1 3 1 Machines Sabotaged . | . . . . . . Garrisons Compromised . | . . . . . . Overloaded Fab Kills . | . . . . . . Fab Network Shutdowns . | . . . . . . Hacking | -11 -10 -10 -10 -9 -8 --------- Run | Scr Mat Min Exi Min Mat Machines Accessed 5 | . . 2 2 . 1 Terminals 1 | . . 1 . . . Fabricators . | . . . . . . Repair Stations . | . . . . . . Recycling Units . | . . . . . . Scanalyzers . | . . . . . . Garrison Access 1 | . . . . . 1 Total Hacks 7 | . . 2 2 . 3 Successful 4 | . . 2 2 . . Failed 3 | . . . . . 3 Catastrophic 1 | . . . . . 1 Database Lockouts . | . . . . . . Manual 2 | . . 1 1 . . Terminals 1 | . . 1 . . . Fabricators . | . . . . . . Repair Stations . | . . . . . . Recycling Units . | . . . . . . Scanalyzers . | . . . . . . Garrison Access 3 | . . . . . 3 Terminal Hacks 4 | . . 2 2 . . Record 1 | . . . 1 . . Robot Analysis 1 | . . 1 . . . Open Door 1 | . . 1 . . . EX-Prototype ID Bank 1 | . . . 1 . . Fabricator Hacks . | . . . . . . Repair Station Hacks . | . . . . . . Recycling Unit Hacks . | . . . . . . Scanalyzer . | . . . . . . Garrison Access Hacks . | . . . . . . Unauthorized Hacks . | . . . . . . Terminals . | . . . . . . Fabricators . | . . . . . . Repair Stations . | . . . . . . Recycling Units . | . . . . . . Scanalyzers . | . . . . . . Garrison Access . | . . . . . . Data Cores Recovered . | . . . . . . Used . | . . . . . . Hacking Detections 1 | . . . . . 1 Full Trace Events 1 | . . . . . 1 Feedback Events . | . . . . . . Feedback Blocked . | . . . . . . Robot Schematics Acquired . | . . . . . . Robots Built . | . . . . . . Matter . | . . . . . . Time . | . . . . . . Total Robot Build Rating . | . . . . . . Part Schematics Acquired . | . . . . . . Parts Built . | . . . . . . Matter . | . . . . . . Time . | . . . . . . Total Part Build Rating . | . . . . . . Parts Repaired . | . . . . . . Time . | . . . . . . Parts Recycled . | . . . . . . Recycled Matter . | . . . . . . Retrieved Matter . | . . . . . . Retrieved Components . | . . . . . . Parts Scanalyzed . | . . . . . . Part Schematics Acquired . | . . . . . . Parts Damaged . | . . . . . . Bothacking | -11 -10 -10 -10 -9 -8 ------------ Run | Scr Mat Min Exi Min Mat Used RIF Installer . | . . . . . . Robots Hacked . | . . . . . . Non-combat . | . . . . . . Combat . | . . . . . . Robot Hacks Applied . | . . . . . . Relay Couplers Released . | . . . . . . Robots Rewired . | . . . . . . Allies Hacked . | . . . . . . Hacks Repelled . | . . . . . . Allies | -11 -10 -10 -10 -9 -8 -------- Run | Scr Mat Min Exi Min Mat Total Allies 1 | . . 1 . . . Largest Group 1 | . . 1 1 . . Highest-Rated Group 31 | . . 31 31 . . Highest-Rated Ally 31 | . . 31 31 . . Total Orders . | . . . . . . Ally Attacks . | . . . . . . Total Damage . | . . . . . . Kills . | . . . . . . Allies Corrupted . | . . . . . . Allies Melted . | . . . . . . Intel | -11 -10 -10 -10 -9 -8 ------- Run | Scr Mat Min Exi Min Mat Robot Analysis Total 1 | . . 1 . . . Derelict Logs Recovered 2 | . . 2 . . . Drone Launches . | . . . . . . Drone Recoveries . | . . . . . . Exploration | -11 -10 -10 -10 -9 -8 ------------- Run | Scr Mat Min Exi Min Mat Turns Passed 1264 | 52 64 537 438 70 103 Spaces Moved 859 | 49 65 338 309 43 55 Core 3 | 3 . . . . . Treads . | . . . . . . Legs . | . . . . . . Wheels 856 | 46 65 338 309 43 55 Hover . | . . . . . . Flight . | . . . . . . Fastest Speed 50 | 50 80 140 140 140 140 Average Speed 133 | 78 95 140 140 140 147 Slowest Speed 215 | 80 140 140 140 140 215 Overloaded Moves . | . . . . . . Propulsion Burnouts . | . . . . . . Robots Hopped . | . . . . . . Cave-ins Triggered . | . . . . . . Exploration Rate (%) 28 | 3 17 43 70 31 8 Regions Visited 5 Branch Regions 3 Pre-discovered Areas 1 | . . . 1 . . Known Exits Taken . | . . . . . . Unknown Exits Taken 5 | 1 1 1 1 1 . Scrap Searched 1 | . . 1 . . . Spaces Dug . | . . . . . . Terrain Destroyed 17 | . . . . 17 . Melee . | . . . . . . Projectile . | . . . . . . AOE 17 | . . . . 17 . Terrain Rammed . | . . . . . . Walls Destroyed . | . . . . . . Machines Disabled . | . . . . . . Actions | -11 -10 -10 -10 -9 -8 --------- Run | Scr Mat Min Exi Min Mat Total 919 | 59 67 368 311 48 66 Wait 6 | . . 6 . . . Move 854 | 48 64 337 308 42 55 Hop . | . . . . . . Pick Up 6 | 5 1 . . . . Fast Attach 8 | 5 1 2 . . . Attach 5 | 1 . 1 . . 3 Detach 3 | . 1 2 . . . Swap 3 | . . . . 2 1 Drop 2 | . . 1 . . 1 Fire 32 | . . 19 3 4 6 Melee . | . . . . . . Ram . | . . . . . . Kick . | . . . . . . Crush . | . . . . . . Escape Stasis . | . . . . . . Rewire . | . . . . . . Trap . | . . . . . . Miscellaneous . | . . . . . . Route ------- -11/Scrapyard -10/Materials -10/Mines (discovered 3 exits: [*Mat x2] / *Exi) -10/Exiles -9/Mines -8/Materials History --------- Turn | Location | Event 6 | -11/Scrapyard | Discovered new exit (range 15) 53 | -11/Scrapyard | Entered Materials 81 | -10/Materials | Discovered new exit (range 16) 117 | -10/Materials | Entered Mines 153 | -10/Mines | Learned 2 Materials zone layouts 175 | -10/Mines | Discovered new exit (range 5) 313 | -10/Mines | Build established: Mutant 356 | -10/Mines | Discovered new exit (range 5) 411 | -10/Mines | Found the Drone Emporium 414 | -10/Mines | Learned Materials emergency access door positions 417 | -10/Mines | Found Prototype Device 417 | -10/Mines | Identified Splice Drone Bay 454 | -10/Mines | Received a Mining Laser from a helpful Derelict 647 | -10/Mines | Deemed a non-threat by the Exiles lab entrance 648 | -10/Mines | Discovered new exit (range 5) 654 | -10/Mines | Entered Exiles 654 | -10/Exiles | Accompanied by 1 ally 689 | -10/Exiles | Met 8R-AWN 712 | -10/Exiles | Met EX-HEX 776 | -10/Exiles | Met EX-DEC 801 | -10/Exiles | Learned location of Zion (-6) 892 | -10/Exiles | Met EX-BIN 912 | -10/Exiles | Aligned with FarCom system 913 | -10/Exiles | Given EX-Vault access code 946 | -10/Exiles | Opened EX-Vault 982 | -10/Exiles | Warned to stay clear of 0b10 Research branches 1064 | -10/Exiles | Attacked by the Exiles 1080 | -10/Exiles | Discovered new exit (range 10) 1092 | -10/Exiles | Entered Mines 1144 | -9/Mines | Discovered new exit (range 14) 1162 | -9/Mines | Entered Materials 1162 | -8/Materials | Evolved 4 slots: Propulsion x1, Utility x3 1256 | -8/Materials | Garrison activated, responded to threat 1265 | -8/Materials | Self-destructed Last Messages --------------- 01233_ Wheel destroyed. 01236_ Penetrated by Slug. 01242_ Lgt. Assault Rifle destroyed. 01245_ Connecting with Garrison Access... 01245_ Current location identified: Materials 01245_ ALERT: Suspicious activity at Garrison Access M001. Dispatching Investigation squad. 01245_ Slug penetrates Garrison Access. 01248_ Slug penetrates G-50 Soldier. 01251_ G-50 Soldier destroyed. 01253_ Slug penetrates Garrison Access. 01256_ Processing Tank disabled. 01256_ H-55 Commando calls for garrison reinforcements. 01256_ ALERT: Activating Garrison Access M001. 01257_ G-47 Trooper emerges from the garrison. 01259_ Penetrated by Slug. 01259_ Wheel destroyed. 01262_ Penetrated by Slug. 01263_ Lgt. Assault Rifle destroyed. 01265_ Slug penetrates Garrison Access. Map ----- +----------------------------------------------------+ | ???????????????????????????????????????????????? | | ???????????????????????????????????????????????? | | ???????????????????????????????????????????????? | | ???????????????????????????????????????????????? | | ???????????????????????????????????????????????? | | ??????????+????????????????????????????????????? | | ???????????????????????????????????????????????? | | ???????????????????????????????????????????????? | | ???????????????????????????????????????????????? | | ????????????+??????????????????????????????????? | | ???????????????????????????????????????????????? | | ???????????????????????????????????????????????? | | ???????????????????????????????????????????????? | | ??????????##+###???????????????????????????????? | | ??????????# #?????????# #?# #### #? | | ??????????#! T #?????????# #?# #### ## | | ??????????# #?????????# #?############ # | | ??????????# #######???# #????????????# # | | ??????????# / #???# #????????????# # | | ??????????# ##### #???# #????????????######## | | ????#?????# #####+##### #????????????????#### | | ????# ???# ## # #????????????????# | | ???## ??# ## """ # ########?????????# | | ???# ###/#### "G" # + #?????????# | | ???# # g "g"g# # #?????????# | | ???# + h =%!@ # # """" #?????????# | | ???# # """ ;%# """" ########??## | | ???# ###+#/## """"" # # """" ## ##???# | | ???## ## *## """"" # # # #???# | | ????# ?# "" ## + ####+### #???# | | ????# ?# """ ########### ## # ##### | | ????# ?# S" #?????????# ## | | ????# ?#[ #?????????# | | ????# ?# #?????????#### | | ????# ?# #????????????# ############## | | ????# ###+####?????????###### ###??????# | | ????# #?# #???????????? # #????????# """" | | ????# #?# #???????????? # ########## """" | | ????# ###+######??????? # # """" | | ????# # #?????????????????????????????? | | ????# # #?????????????????????????????? | | ????# # """ #?????????????????????????????? | | ????# # """"" #?????????????????????????????? | | ????# + """"" #?????????????????????????????? | | ????# # """"" #?????????????????????????????? | | ????# # """ #?????????????????????????????? | | ????# # ?#?????????????????????????????? | | ????# # ???????????????????????????????? | | ????# #########??????????????????????????????? | | ????#####??????????????????????????????????????? | +----------------------------------------------------+ Best States ------------- Heat Dissipation 45 Energy Generation 12 Energy Capacity 265 Matter Stores 300 Matter Capacity 300 Sight Range 16 Terrain Scan Density 10 Evasion (%) 44 Recoil Reduction 2 Item Schematics ----------------- None Robot Schematics ------------------ None Fabricated ------------ Nothing Alien Tech Used ----------------- None Achievements -------------- None Challenges ------------ None Game ------ Seed GyrokineticLargeGenerator Manual? 0 Play Time 00:06:58 Cumulative 231.1 hours Start 2021.09.17 @ 20:02:46 End 2021.09.17 @ 20:08:51 Sessions 1 Manual Loads 0 Difficulty Rogue Special Mode None Game No. 296 Rogue 209 Adventurer 87 Explorer 0 Win Type - Total 5 Types 3/0/1/1/0/0/0/0/0 Lore% 71 Gallery% 79 Achievement% 67 Wizard Run 0 Options --------- ASCII 0 Keyboard 1 Movement Numpad Keybinds 0 Fullscreen 1 Font 18/Smallcaps Map View 76x50 Tactical HUD 1 Map Filters NONE Filters NONE Steam 1 RUN: 64c05f27-de51-446f-b40b-b3e512714607